fUSD/lending_fUSD_20260701
["ID","MTS","AMOUNT","RATE_DAILY","PERIOD"]
[426799244,1782838239000,-601.23,0.00026027,7]
[426799247,1782838239000,-279.0,0.0002609,2]
[426799249,1782838239000,-216.0,0.0002609,2]
[426799250,1782838239000,-392.24471543,0.00026145,2]
[426799224,1782838239000,-271.08744492,0.00025653,2]
[426799243,1782838239000,-214.44888323,0.00025653,2]
[426799223,1782838239000,-289.42641487,0.00025653,2]
[426799204,1782838239000,-157.00369954,0.00024816,2]
[426799215,1782838239000,-200.0,0.00025512,2]
[426799180,1782838239000,-172.56213439,0.00024754,2]
[426799178,1782838239000,-1000.0,0.00024658,2]
[426799185,1782838239000,-364.73941245,0.00024816,2]
[426799183,1782838239000,-324.66369732,0.00024816,2]
[426799187,1782838239000,-201.26453819,0.00024816,2]
[426799176,1782838239000,-180.64,0.00024658,2]
[426799189,1782838239000,-329.62247659,0.00024816,2]
[426799191,1782838239000,-196.07907278,0.00024816,2]
[426799195,1782838239000,-309.22028549,0.00024816,2]
[426799199,1782838239000,-368.2720514,0.00024816,2]
[426799197,1782838239000,-345.44925053,0.00024816,2]
[426799193,1782838239000,-342.39887714,0.00024816,2]
[426799221,1782838239000,-402.52907639,0.00025653,2]
[426799201,1782838239000,-158.87315997,0.00024816,2]
[426799206,1782838239000,-156.83828683,0.00024816,2]
[426799253,1782838239000,-386.49239958,0.0002621,2]
[426799208,1782838239000,-412.02709848,0.00024816,2]
[426799212,1782838239000,-164.63984595,0.00024816,2]
[426799213,1782838239000,-155.04098883,0.00024967,2]
[426799214,1782838239000,-286.0,0.00025,2]
[426799219,1782838239000,-161.20806992,0.00025653,2]
[426799217,1782838239000,-193.24619979,0.00025653,2]
[426799216,1782838239000,-345.12426877,0.00025588,2]
[426799222,1782838239000,-247.98321862,0.00025653,2]
[426799220,1782838239000,-547.10911867,0.00025653,2]
[426799218,1782838239000,-486.99554598,0.00025653,2]
[426799210,1782838239000,-301.95339958,0.00024816,2]
[426799251,1782838239000,-221.67594002,0.00026145,2]
[426799235,1782838239000,-314.00739907,0.00025653,2]
[426799252,1782838239000,-517.68640316,0.00026145,2]
[426799287,1782838239000,-289.45297135,0.0002621,2]
[426799286,1782838239000,-288.93583114,0.0002621,2]
[426799290,1782838239000,-366.71367479,0.0002621,2]
[426799288,1782838239000,-185.27102826,0.0002621,2]
[426799289,1782838239000,-476.61947992,0.0002621,2]
[426799292,1782838239000,-307.07884874,0.0002621,2]
[426799284,1782838239000,-200.00442473,0.0002621,2]
[426799293,1782838239000,-471.01109861,0.0002621,2]
[426799291,1782838239000,-299.56351897,0.0002621,2]
[426799294,1782838239000,-224.69635559,0.0002621,2]
[426799295,1782838239000,-297.37458971,0.0002621,2]
[426799298,1782838239000,-824.05419697,0.0002621,2]
[426799285,1782838239000,-461.60473207,0.0002621,2]
[426799299,1782838239000,-272.88659007,0.0002621,2]
[426799305,1782838239000,-349.96491077,0.0002621,2]
[426799302,1782838239000,-366.03614774,0.0002621,2]
[426799300,1782838239000,-408.78097799,0.0002621,2]
[426799301,1782838239000,-224.53956617,0.0002621,2]
[426799304,1782838239000,-493.91953786,0.0002621,2]
[426799296,1782838239000,-474.89333994,0.0002621,2]
[426799306,1782838239000,-338.7729961,0.0002621,2]
[426799307,1782838239000,-428.89776645,0.0002621,2]
[426799308,1782838239000,-381.76577315,0.0002621,2]
[426799310,1782838239000,-319.54920007,0.0002621,2]
[426799309,1782838239000,-192.80289623,0.0002621,2]
[426799257,1782838239000,-409.46947881,0.0002621,2]
[426799303,1782838239000,-603.90679916,0.0002621,2]
[426799283,1782838239000,-402.77523641,0.0002621,2]
[426799297,1782838239000,-470.5148605,0.0002621,2]
[426799281,1782838239000,-465.08158172,0.0002621,2]
[426799282,1782838239000,-736.5441028,0.0002621,2]
[426799255,1782838239000,-322.41613983,0.0002621,2]
[426799258,1782838239000,-151.81164047,0.0002621,2]
[426799256,1782838239000,-729.4788249,0.0002621,2]
[426799259,1782838239000,-603.79361458,0.0002621,2]
[426799260,1782838239000,-209.24524075,0.0002621,2]
[426799261,1782838239000,-183.64806678,0.0002621,2]
[426799264,1782838239000,-578.85282975,0.0002621,2]
[426799262,1782838239000,-165.70570808,0.0002621,2]
[426799265,1782838239000,-211.75039215,0.0002621,2]
[426799266,1782838239000,-424.58295022,0.0002621,2]
[426799267,1782838239000,-542.17488983,0.0002621,2]
[426799268,1782838239000,-277.79023618,0.0002621,2]
[426799254,1782838239000,-649.32739464,0.0002621,2]
[426799278,1782838239000,-229.10460203,0.0002621,2]
[426799280,1782838239000,-690.89850107,0.0002621,2]
[426799279,1782838239000,-618.44057098,0.0002621,2]
[426799277,1782838239000,-209.27073509,0.0002621,2]
[426799269,1782838239000,-471.40624244,0.0002621,2]
[426799275,1782838239000,-182.27071979,0.0002621,2]
[426799276,1782838239000,-306.74442673,0.0002621,2]
[426799273,1782838239000,-237.44429726,0.0002621,2]
[426799272,1782838239000,-684.79775429,0.0002621,2]
[426799271,1782838239000,-588.23721833,0.0002621,2]
[426799270,1782838239000,-659.24495318,0.0002621,2]
[426799263,1782838239000,-495.96643724,0.0002621,2]
[426799274,1782838239000,-206.90720258,0.0002621,2]
[426799344,1782838240000,-679.0,0.00027397,5]
[426799346,1782838240000,-663.0,0.00027397,5]
[426799357,1782838240000,-685.0,0.00027397,5]
[426799354,1782838240000,-676.0,0.00027397,5]
[426799349,1782838240000,-667.0,0.00027397,5]
[426799342,1782838240000,-684.0,0.00027397,5]
[426799347,1782838240000,-680.0,0.00027397,5]
[426799343,1782838240000,-687.0,0.00027397,5]
[426799355,1782838240000,-670.0,0.00027397,5]
[426799353,1782838240000,-681.0,0.00027397,5]
[426799345,1782838240000,-667.0,0.00027397,5]
[426799356,1782838240000,-669.0,0.00027397,5]
[426799348,1782838240000,-683.0,0.00027397,5]
[426799370,1782838240000,-666.0,0.00027397,5]
[426799367,1782838240000,-300.0,0.00027397,5]
[426799369,1782838240000,-683.0,0.00027397,5]
[426799358,1782838240000,-667.0,0.00027397,5]
[426799363,1782838240000,-672.0,0.00027397,5]
[426799361,1782838240000,-675.0,0.00027397,5]
[426799362,1782838240000,-683.0,0.00027397,5]
[426799365,1782838240000,-664.0,0.00027397,5]
[426799364,1782838240000,-664.0,0.00027397,5]
[426799360,1782838240000,-662.0,0.00027397,5]
[426799366,1782838240000,-683.0,0.00027397,5]
[426799368,1782838240000,-670.0,0.00027397,5]
[426799371,1782838240000,-151.0,0.00027397,5]
[426799374,1782838240000,-678.0,0.00027397,5]
[426799359,1782838240000,-667.0,0.00027397,5]
[426799334,1782838240000,-1031.0,0.00027397,5]
[426799372,1782838240000,-688.0,0.00027397,5]
[426799336,1782838240000,-345.0,0.00027397,5]
[426799311,1782838240000,-208.0,0.00026521,2]
[426799314,1782838240000,-824.05619148,0.00026768,2]
[426799312,1782838240000,-811.6592433,0.00026768,2]
[426799315,1782838240000,-855.99719286,0.00026768,2]
[426799317,1782838240000,-863.62312633,0.00026768,2]
[426799316,1782838240000,-773.05071373,0.00026768,2]
[426799318,1782838240000,-920.6801285,0.00026768,2]
[426799319,1782838240000,-754.88349895,0.00026768,2]
[426799320,1782838240000,-822.0,0.00027,2]
[426799322,1782838240000,-504.00003,0.00027137,2]
[426799321,1782838240000,-504.0,0.00027137,2]
[426799323,1782838240000,-155.04098883,0.00027207,2]
[426799324,1782838240000,-150.77637123,0.00027294,2]
[426799328,1782838240000,-1025.0,0.00027397,5]
[426799327,1782838240000,-216.62538722,0.00027397,10]
[426799325,1782838240000,-2500.0,0.00027297,2]
[426799326,1782838240000,-1500.0,0.00027397,2]
[426799329,1782838240000,-684.0,0.00027397,5]
[426799341,1782838240000,-675.0,0.00027397,5]
[426799331,1782838240000,-665.0,0.00027397,5]
[426799333,1782838240000,-688.0,0.00027397,5]
[426799332,1782838240000,-1041.0,0.00027397,5]
[426799338,1782838240000,-663.0,0.00027397,5]
[426799335,1782838240000,-674.0,0.00027397,5]
[426799337,1782838240000,-664.0,0.00027397,5]
[426799330,1782838240000,-1025.0,0.00027397,5]
[426799339,1782838240000,-150.0,0.00027397,5]
[426799340,1782838240000,-662.0,0.00027397,5]
[426799375,1782838240000,-152.0,0.00027397,5]
[426799313,1782838240000,-911.84853112,0.00026768,2]
[426799381,1782838240000,-667.0,0.00027397,5]
[426799406,1782838240000,-504.0,0.00027963,2]
[426799411,1782838240000,-151.0,0.00028502,5]
[426799419,1782838240000,-206.735423,0.00028816,2]
[426799420,1782838240000,-1136.32294063,0.00028858,2]
[426799421,1782838240000,-1276.58794357,0.00028858,2]
[426799410,1782838240000,-250.0,0.00028502,5]
[426799412,1782838240000,-678.0,0.00028502,5]
[426799415,1782838240000,-150.36,0.00028665,2]
[426799413,1782838240000,-666.0,0.00028533,5]
[426799414,1782838240000,-500.0,0.0002855,2]
[426799417,1782838240000,-504.0,0.00028789,3]
[426799416,1782838240000,-685.0,0.00028666,5]
[426799418,1782838240000,-1126.23682949,0.00028791,2]
[426799407,1782838240000,-216.62538722,0.000282,10]
[426799422,1782838240000,-1198.39607,0.00028858,2]
[426799423,1782838240000,-1082.27099922,0.00028858,2]
[426799425,1782838240000,-206.735423,0.00028877,2]
[426799432,1782838240000,-1355.0,0.0002909,2]
[426799429,1782838240000,-500.0,0.00029,2]
[426799427,1782838240000,-206.735424,0.00029,2]
[426799430,1782838240000,-3346.36,0.0002908,2]
[426799428,1782838240000,-500.0,0.00029,2]
[426799431,1782838240000,-3565.0,0.0002909,2]
[426799426,1782838240000,-206.735424,0.00028939,2]
[426799434,1782838240000,-216.0,0.0002909,2]
[426799433,1782838240000,-935.0,0.0002909,2]
[426799435,1782838240000,-460.20495261,0.00029228,2]
[426799373,1782838240000,-151.0,0.00027397,5]
[426799424,1782838240000,-1056.83689853,0.00028858,2]
[426799401,1782838240000,-927.66085647,0.00027604,2]
[426799436,1782838240000,-425.79,0.00029315,2]
[426799409,1782838240000,-151.0,0.00028502,5]
[426799382,1782838240000,-321.48666047,0.00027397,2]
[426799383,1782838240000,-159.5410629,0.00027397,2]
[426799376,1782838240000,-671.0,0.00027397,5]
[426799377,1782838240000,-150.0,0.00027397,5]
[426799379,1782838240000,-669.0,0.00027397,5]
[426799378,1782838240000,-687.0,0.00027397,5]
[426799380,1782838240000,-300.0,0.00027397,2]
[426799385,1782838240000,-187.70613825,0.00027397,2]
[426799402,1782838240000,-1036.3477516,0.00027604,2]
[426799395,1782838240000,-165.20765594,0.00027594,5]
[426799390,1782838240000,-216.62538722,0.000275,7]
[426799388,1782838240000,-750.82455299,0.00027397,2]
[426799384,1782838240000,-319.08212579,0.00027397,2]
[426799393,1782838240000,-1033.0,0.00027594,5]
[426799396,1782838240000,-681.0,0.00027594,5]
[426799387,1782838240000,-563.11841475,0.00027397,2]
[426799404,1782838240000,-905.86019874,0.00027604,2]
[426799389,1782838240000,-500.0,0.000275,7]
[426799398,1782838240000,-1094.21823735,0.00027604,2]
[426799405,1782838240000,-938.53069124,0.00027955,2]
[426799400,1782838240000,-1027.19663143,0.00027604,2]
[426799403,1782838240000,-1104.8161542,0.00027604,2]
[426799408,1782838240000,-180.64,0.0002831,2]
[426799397,1782838240000,-973.99109197,0.00027604,2]
[426799392,1782838240000,-500.0,0.0002755,2]
[426799394,1782838240000,-247.0,0.00027594,5]
[426799386,1782838240000,-375.4122765,0.00027397,2]
[426799391,1782838240000,-221.6554765,0.00027504,2]
[426799399,1782838240000,-988.86742977,0.00027604,2]
[426799473,1782838241000,-1000.0,0.00030136,2]
[426799470,1782838241000,-500.0,0.00030136,15]
[426799472,1782838241000,-1000.0,0.00030136,2]
[426799476,1782838241000,-1000.0,0.00030136,2]
[426799474,1782838241000,-1000.0,0.00030136,2]
[426799465,1782838241000,-500.0,0.00030136,15]
[426799475,1782838241000,-1000.0,0.00030136,2]
[426799471,1782838241000,-486.149978,0.00030136,15]
[426799478,1782838241000,-1000.0,0.00030136,2]
[426799469,1782838241000,-500.0,0.00030136,15]
[426799477,1782838241000,-1000.0,0.00030136,2]
[426799479,1782838241000,-1000.0,0.00030136,2]
[426799489,1782838241000,-1000.0,0.00030136,2]
[426799482,1782838241000,-1000.0,0.00030136,2]
[426799491,1782838241000,-1000.0,0.00030136,2]
[426799490,1782838241000,-1000.0,0.00030136,2]
[426799493,1782838241000,-1000.0,0.00030136,2]
[426799492,1782838241000,-1000.0,0.00030136,2]
[426799481,1782838241000,-1000.0,0.00030136,2]
[426799483,1782838241000,-1000.0,0.00030136,2]
[426799485,1782838241000,-1000.0,0.00030136,2]
[426799484,1782838241000,-1000.0,0.00030136,2]
[426799487,1782838241000,-1000.0,0.00030136,2]
[426799486,1782838241000,-1000.0,0.00030136,2]
[426799488,1782838241000,-1000.0,0.00030136,2]
[426799463,1782838241000,-3346.36,0.00030126,2]
[426799480,1782838241000,-1000.0,0.00030136,2]
[426799458,1782838241000,-205.92175291,0.00029973,2]
[426799454,1782838241000,-14014.94696749,0.000299,2]
[426799461,1782838241000,-800.0,0.0003,2]
[426799494,1782838241000,-1000.0,0.00030136,2]
[426799442,1782838241000,-678.0,0.00029585,5]
[426799443,1782838241000,-151.0,0.00029585,5]
[426799444,1782838241000,-504.0,0.00029615,4]
[426799437,1782838241000,-155.04098883,0.00029448,2]
[426799439,1782838241000,-150.0,0.00029534,2]
[426799441,1782838241000,-17306.75,0.00029552,7]
[426799440,1782838241000,-1706.01,0.00029552,7]
[426799438,1782838241000,-425.79,0.00029479,2]
[426799445,1782838241000,-425.79,0.00029644,2]
[426799447,1782838241000,-3346.36,0.0002989,2]
[426799448,1782838241000,-14014.94696768,0.000299,2]
[426799452,1782838241000,-14014.94696749,0.000299,2]
[426799446,1782838241000,-425.79,0.00029808,2]
[426799450,1782838241000,-14014.94696749,0.000299,2]
[426799449,1782838241000,-14014.94696749,0.000299,2]
[426799453,1782838241000,-14014.94696749,0.000299,2]
[426799455,1782838241000,-14014.94696749,0.000299,2]
[426799451,1782838241000,-14014.94696749,0.000299,2]
[426799457,1782838241000,-14014.94696749,0.00029952,2]
[426799467,1782838241000,-500.0,0.00030136,15]
[426799456,1782838241000,-3346.36,0.00029942,2]
[426799468,1782838241000,-500.0,0.00030136,15]
[426799459,1782838241000,-800.0,0.0003,2]
[426799464,1782838241000,-500.0,0.00030136,15]
[426799466,1782838241000,-500.0,0.00030136,15]
[426799462,1782838241000,-800.0,0.0003,2]
[426799460,1782838241000,-800.0,0.0003,2]
[426799496,1782838241000,-1000.0,0.00030136,2]
[426799497,1782838241000,-1000.0,0.00030136,2]
[426799505,1782838241000,-1000.0,0.00030136,2]
[426799530,1782838241000,-1000.0,0.00030136,2]
[426799529,1782838241000,-1000.0,0.00030136,2]
[426799526,1782838241000,-1000.0,0.00030136,2]
[426799527,1782838241000,-1000.0,0.00030136,2]
[426799531,1782838241000,-1000.0,0.00030136,2]
[426799535,1782838241000,-1000.0,0.00030136,2]
[426799534,1782838241000,-1000.0,0.00030136,2]
[426799536,1782838241000,-1000.0,0.00030136,2]
[426799538,1782838241000,-1000.0,0.00030136,2]
[426799541,1782838241000,-1000.0,0.00030136,2]
[426799537,1782838241000,-1000.0,0.00030136,2]
[426799539,1782838241000,-1000.0,0.00030136,2]
[426799543,1782838241000,-1000.0,0.00030136,2]
[426799553,1782838241000,-1000.0,0.00030136,2]
[426799542,1782838241000,-1000.0,0.00030136,2]
[426799551,1782838241000,-1000.0,0.00030136,2]
[426799545,1782838241000,-1000.0,0.00030136,2]
[426799552,1782838241000,-1000.0,0.00030136,2]
[426799546,1782838241000,-1000.0,0.00030136,2]
[426799544,1782838241000,-1000.0,0.00030136,2]
[426799547,1782838241000,-1000.0,0.00030136,2]
[426799548,1782838241000,-1000.0,0.00030136,2]
[426799549,1782838241000,-1000.0,0.00030136,2]
[426799550,1782838241000,-1000.0,0.00030136,2]
[426799555,1782838241000,-1000.0,0.00030136,2]
[426799554,1782838241000,-1000.0,0.00030136,2]
[426799556,1782838241000,-1000.0,0.00030136,2]
[426799528,1782838241000,-1000.0,0.00030136,2]
[426799532,1782838241000,-1000.0,0.00030136,2]
[426799540,1782838241000,-1000.0,0.00030136,2]
[426799525,1782838241000,-1000.0,0.00030136,2]
[426799498,1782838241000,-1000.0,0.00030136,2]
[426799521,1782838241000,-1000.0,0.00030136,2]
[426799506,1782838241000,-1000.0,0.00030136,2]
[426799500,1782838241000,-1000.0,0.00030136,2]
[426799502,1782838241000,-1000.0,0.00030136,2]
[426799499,1782838241000,-1000.0,0.00030136,2]
[426799501,1782838241000,-1000.0,0.00030136,2]
[426799503,1782838241000,-1000.0,0.00030136,2]
[426799495,1782838241000,-1000.0,0.00030136,2]
[426799515,1782838241000,-1000.0,0.00030136,2]
[426799507,1782838241000,-1000.0,0.00030136,2]
[426799519,1782838241000,-1000.0,0.00030136,2]
[426799516,1782838241000,-1000.0,0.00030136,2]
[426799518,1782838241000,-1000.0,0.00030136,2]
[426799504,1782838241000,-1000.0,0.00030136,2]
[426799524,1782838241000,-1000.0,0.00030136,2]
[426799517,1782838241000,-1000.0,0.00030136,2]
[426799523,1782838241000,-1000.0,0.00030136,2]
[426799520,1782838241000,-1000.0,0.00030136,2]
[426799522,1782838241000,-1000.0,0.00030136,2]
[426799533,1782838241000,-1000.0,0.00030136,2]
[426799510,1782838241000,-1000.0,0.00030136,2]
[426799512,1782838241000,-1000.0,0.00030136,2]
[426799513,1782838241000,-1000.0,0.00030136,2]
[426799511,1782838241000,-1000.0,0.00030136,2]
[426799509,1782838241000,-1000.0,0.00030136,2]
[426799508,1782838241000,-1000.0,0.00030136,2]
[426799514,1782838241000,-1000.0,0.00030136,2]
[426799595,1782838242000,-800.0,0.00031,2]
[426799597,1782838242000,-150.0,0.00031011,2]
[426799603,1782838242000,-151.0,0.00031646,2]
[426799596,1782838242000,-800.0,0.00031,2]
[426799604,1782838242000,-155.04098883,0.00031688,2]
[426799587,1782838242000,-167.0,0.00030585,30]
[426799605,1782838242000,-14014.94696749,0.00031933,2]
[426799594,1782838242000,-1000.0,0.00031,7]
[426799588,1782838242000,-1468.91120627,0.00030667,2]
[426799591,1782838242000,-14014.94696749,0.00030943,2]
[426799601,1782838242000,-278.0,0.00031552,30]
[426799593,1782838242000,-800.0,0.00031,2]
[426799598,1782838242000,-504.0,0.00031267,6]
[426799617,1782838242000,-504.0,0.00032093,7]
[426799600,1782838242000,-154.0,0.00031552,30]
[426799602,1782838242000,-211.39,0.00031594,3]
[426799606,1782838242000,-943.49,0.0003195,2]
[426799609,1782838242000,-800.0,0.0003195,2]
[426799613,1782838242000,-675.0,0.00032,5]
[426799612,1782838242000,-7170.6886,0.00032,2]
[426799615,1782838242000,-935.0,0.0003209,2]
[426799614,1782838242000,-3565.0,0.0003209,2]
[426799608,1782838242000,-814.8,0.0003195,2]
[426799610,1782838242000,-1200.0,0.0003195,2]
[426799607,1782838242000,-800.0,0.0003195,2]
[426799611,1782838242000,-180.64,0.00031963,2]
[426799589,1782838242000,-1236.88114196,0.0003074,2]
[426799599,1782838242000,-14014.94696749,0.00031438,2]
[426799590,1782838242000,-3346.36,0.00030933,2]
[426799565,1782838242000,-1000.0,0.00030136,2]
[426799586,1782838242000,-278.0,0.00030552,30]
[426799566,1782838242000,-1000.0,0.00030136,2]
[426799618,1782838242000,-605.79249916,0.0003224,2]
[426799567,1782838242000,-1000.0,0.00030136,2]
[426799557,1782838242000,-1000.0,0.00030136,2]
[426799562,1782838242000,-1000.0,0.00030136,2]
[426799559,1782838242000,-1000.0,0.00030136,2]
[426799558,1782838242000,-1000.0,0.00030136,2]
[426799561,1782838242000,-1000.0,0.00030136,2]
[426799564,1782838242000,-1000.0,0.00030136,2]
[426799560,1782838242000,-1000.0,0.00030136,2]
[426799563,1782838242000,-1000.0,0.00030136,2]
[426799569,1782838242000,-1000.0,0.00030136,2]
[426799579,1782838242000,-14014.94696749,0.00030447,2]
[426799570,1782838242000,-1000.0,0.00030136,2]
[426799580,1782838242000,-1767.121,0.00030479,26]
[426799571,1782838242000,-1000.0,0.00030136,2]
[426799568,1782838242000,-1000.0,0.00030136,2]
[426799572,1782838242000,-286.0,0.00030137,2]
[426799574,1782838242000,-170.3940103,0.00030137,120]
[426799573,1782838242000,-191.07011172,0.00030137,2]
[426799577,1782838242000,-162.22,0.00030411,120]
[426799578,1782838242000,-504.0,0.00030441,5]
[426799576,1782838242000,-215.21797098,0.00030137,2]
[426799575,1782838242000,-500.0,0.00030137,3]
[426799581,1782838242000,-800.0,0.000305,2]
[426799583,1782838242000,-800.0,0.000305,2]
[426799584,1782838242000,-800.0,0.000305,2]
[426799592,1782838242000,-10832.37937155,0.00031,2]
[426799582,1782838242000,-800.0,0.000305,2]
[426799585,1782838242000,-151.0,0.00030552,30]
[426799616,1782838242000,-216.0,0.0003209,2]
[426799624,1782838242000,-151.0,0.00032762,2]
[426799630,1782838242000,-300.0,0.00033381,2]
[426799655,1782838242000,-300.0,0.00033381,2]
[426799659,1782838242000,-300.0,0.00033381,2]
[426799658,1782838242000,-303.39655282,0.00033381,2]
[426799662,1782838242000,-300.0,0.00033381,2]
[426799666,1782838242000,-300.0,0.00033381,2]
[426799660,1782838242000,-300.0,0.00033381,2]
[426799656,1782838242000,-730.16355908,0.00033381,2]
[426799663,1782838242000,-300.0,0.00033381,2]
[426799665,1782838242000,-300.0,0.00033381,2]
[426799657,1782838242000,-300.0,0.00033381,2]
[426799661,1782838242000,-302.18244982,0.00033381,2]
[426799667,1782838242000,-300.0,0.00033381,2]
[426799664,1782838242000,-300.0,0.00033381,2]
[426799650,1782838242000,-300.0,0.00033381,2]
[426799668,1782838242000,-300.0,0.00033381,2]
[426799672,1782838242000,-300.0,0.00033381,2]
[426799670,1782838242000,-300.0,0.00033381,2]
[426799674,1782838242000,-954.35902138,0.00033381,2]
[426799673,1782838242000,-300.0,0.00033381,2]
[426799677,1782838242000,-300.0,0.00033381,2]
[426799680,1782838242000,-597.30103364,0.00033381,2]
[426799669,1782838242000,-529.66240687,0.00033381,2]
[426799676,1782838242000,-300.0,0.00033381,2]
[426799671,1782838242000,-300.0,0.00033381,2]
[426799679,1782838242000,-300.0,0.00033381,2]
[426799678,1782838242000,-576.47447351,0.00033381,2]
[426799682,1782838242000,-311.24105314,0.00033381,2]
[426799620,1782838242000,-14014.94696749,0.00032428,2]
[426799675,1782838242000,-1807.41685047,0.00033381,2]
[426799653,1782838242000,-300.0,0.00033381,2]
[426799681,1782838242000,-300.0,0.00033381,2]
[426799652,1782838242000,-300.0,0.00033381,2]
[426799621,1782838242000,-278.0,0.00032552,30]
[426799619,1782838242000,-1178.0,0.00032415,5]
[426799622,1782838242000,-150.0,0.00032562,2]
[426799623,1782838242000,-210.13,0.00032614,3]
[426799626,1782838242000,-714.0,0.000329,2]
[426799625,1782838242000,-200.0,0.00032847,2]
[426799629,1782838242000,-300.0,0.00033381,2]
[426799628,1782838242000,-14014.94696749,0.00032924,2]
[426799651,1782838242000,-300.0,0.00033381,2]
[426799631,1782838242000,-307.83027527,0.00033381,2]
[426799634,1782838242000,-370.50129633,0.00033381,2]
[426799636,1782838242000,-300.0,0.00033381,2]
[426799642,1782838242000,-300.0,0.00033381,2]
[426799635,1782838242000,-300.0,0.00033381,2]
[426799627,1782838242000,-504.0,0.00032919,8]
[426799641,1782838242000,-300.0,0.00033381,2]
[426799648,1782838242000,-300.0,0.00033381,2]
[426799637,1782838242000,-300.0,0.00033381,2]
[426799649,1782838242000,-607.8838736,0.00033381,2]
[426799647,1782838242000,-300.0,0.00033381,2]
[426799645,1782838242000,-495.31706617,0.00033381,2]
[426799643,1782838242000,-300.0,0.00033381,2]
[426799646,1782838242000,-300.0,0.00033381,2]
[426799654,1782838242000,-536.80437166,0.00033381,2]
[426799644,1782838242000,-300.0,0.00033381,2]
[426799639,1782838242000,-300.0,0.00033381,2]
[426799632,1782838242000,-300.0,0.00033381,2]
[426799640,1782838242000,-300.0,0.00033381,2]
[426799638,1782838242000,-300.0,0.00033381,2]
[426799633,1782838242000,-1101.13386496,0.00033381,2]
[426799728,1782838243000,-300.0,0.00033381,2]
[426799727,1782838243000,-300.0,0.00033381,2]
[426799730,1782838243000,-300.0,0.00033381,2]
[426799745,1782838243000,-303.39655282,0.00033381,2]
[426799744,1782838243000,-300.0,0.00033381,2]
[426799742,1782838243000,-301.17628441,0.00033381,2]
[426799743,1782838243000,-730.16355908,0.00033381,2]
[426799733,1782838243000,-300.0,0.00033381,2]
[426799732,1782838243000,-495.31706617,0.00033381,2]
[426799739,1782838243000,-300.0,0.00033381,2]
[426799734,1782838243000,-300.0,0.00033381,2]
[426799738,1782838243000,-300.0,0.00033381,2]
[426799751,1782838243000,-300.0,0.00033381,2]
[426799736,1782838243000,-607.8838736,0.00033381,2]
[426799737,1782838243000,-300.0,0.00033381,2]
[426799735,1782838243000,-300.0,0.00033381,2]
[426799740,1782838243000,-300.0,0.00033381,2]
[426799746,1782838243000,-300.0,0.00033381,2]
[426799748,1782838243000,-302.18244982,0.00033381,2]
[426799753,1782838243000,-300.0,0.00033381,2]
[426799750,1782838243000,-300.0,0.00033381,2]
[426799749,1782838243000,-300.0,0.00033381,2]
[426799752,1782838243000,-300.0,0.00033381,2]
[426799754,1782838243000,-300.0,0.00033381,2]
[426799725,1782838243000,-300.0,0.00033381,2]
[426799741,1782838243000,-536.80437166,0.00033381,2]
[426799726,1782838243000,-300.0,0.00033381,2]
[426799714,1782838243000,-300.0,0.00033381,2]
[426799724,1782838243000,-300.0,0.00033381,2]
[426799747,1782838243000,-300.0,0.00033381,2]
[426799683,1782838243000,-420.25550991,0.00033381,2]
[426799686,1782838243000,-352.99118319,0.00033381,2]
[426799685,1782838243000,-300.0,0.00033381,2]
[426799688,1782838243000,-300.0,0.00033381,2]
[426799689,1782838243000,-300.0,0.00033381,2]